bitfinex/quotes_BTCUSD_20241009
["timestamp","ask_amount","ask_price","bid_price","bid_amount"]
[1728517609639,0.55646152,60703.0,60696.0,0.24621041]
[1728517609640,0.164752,60697.0,60696.0,0.24621041]
[1728517609876,0.01531071,60697.0,60696.0,0.24621041]
[1728517610104,0.01531071,60697.0,60694.0,0.164759]
[1728517610322,0.334484,60701.0,60692.0,0.329532]
[1728517610323,0.01531071,60696.0,60695.0,0.164756]
[1728517610530,0.01531071,60696.0,60695.0,0.164758]
[1728517610961,0.01531071,60696.0,60694.0,0.16476]
[1728517611182,0.013,60697.0,60694.0,0.16476]
[1728517611183,0.01531071,60695.0,60694.0,0.16476]
[1728517611851,0.01531071,60695.0,60692.0,0.329532]
[1728517612067,0.01529464,60694.0,60693.0,0.164763]
[1728517612782,0.01529464,60694.0,60693.0,0.245763]
[1728517613254,0.02429464,60694.0,60693.0,0.245763]
[1728517614902,0.03229464,60694.0,60693.0,0.245763]
[1728517615144,0.017,60694.0,60693.0,0.245763]
[1728517615370,0.03230063,60694.0,60693.0,0.245763]
[1728517616094,0.03230063,60694.0,60693.0,0.339463]
[1728517618019,0.03230063,60694.0,60693.0,0.4393179]
[1728517618513,0.03230063,60694.0,60693.0,0.339463]
[1728517621816,0.03230063,60694.0,60693.0,0.175517]
[1728517622308,0.03230063,60694.0,60693.0,0.34028]
[1728517622554,0.03230063,60694.0,60693.0,0.175517]
[1728517622780,0.03230063,60694.0,60693.0,0.34028]
[1728517622995,0.03230063,60694.0,60693.0,0.45254523]
[1728517623670,0.03230063,60694.0,60693.0,0.61338287]
[1728517623889,0.03230063,60694.0,60693.0,0.73638287]
[1728517624609,0.017,60694.0,60693.0,0.92415196]
[1728517624825,0.009,60694.0,60693.0,0.92415196]
[1728517625368,0.009,60694.0,60693.0,0.73638287]
[1728517625599,0.002,60703.0,60694.0,0.1]
[1728517625850,0.0511669,60702.0,60694.0,0.1]
[1728517626092,0.04893971,60704.0,60694.0,0.1]
[1728517626093,0.3806409,60703.0,60694.0,0.1]
[1728517626304,0.329488,60701.0,60694.0,0.1]
[1728517626519,0.329494,60699.0,60694.0,0.1]
[1728517626754,0.164743,60701.0,60694.0,0.34621041]
[1728517626974,0.05118363,60700.0,60697.0,0.164752]
[1728517627446,0.21592863,60700.0,60697.0,0.164752]
[1728517627660,0.01,60701.0,60695.0,0.329516]
[1728517627867,0.006,60699.0,60697.0,0.16475]
[1728517628352,0.006,60699.0,60698.0,0.56064839]
[1728517628561,0.006,60699.0,60698.0,0.64084839]
[1728517628841,0.006,60699.0,60698.0,0.34305]
[1728517629329,0.001634,60705.0,60698.0,0.1783]
[1728517629546,0.21593638,60704.0,60699.0,0.164745]
[1728517629767,0.007,60700.0,60699.0,0.41095541]
[1728517629987,0.007,60700.0,60699.0,0.32555161]
[1728517630204,0.001634,60705.0,60700.0,0.329487]
[1728517630430,0.05120776,60704.0,60702.0,0.164738]
[1728517630659,0.05120776,60704.0,60701.0,0.329479]
[1728517630884,0.06420776,60704.0,60700.0,0.49423]
[1728517631107,0.06420776,60704.0,60703.0,0.164736]
[1728517631108,0.013,60704.0,60703.0,0.164736]
[1728517631317,0.06421584,60704.0,60701.0,0.21377443]
[1728517631531,0.013,60704.0,60701.0,0.04903443]
[1728517631787,0.0620226,60704.0,60701.0,0.04903443]
[1728517632021,0.0490226,60704.0,60701.0,0.21377543]
[1728517632414,0.0490226,60704.0,60702.0,0.1060257]
[1728517632626,0.10025668,60703.0,60702.0,0.1060257]
[1728517632834,0.10025668,60703.0,60702.0,0.2707647]
[1728517633042,0.10025668,60703.0,60702.0,0.1060257]
[1728517633241,0.10025668,60703.0,60702.0,0.2707647]
[1728517633392,0.10025668,60703.0,60702.0,0.1060257]
[1728517633593,0.05123408,60703.0,60702.0,0.1070257]
[1728517633795,0.06323408,60703.0,60702.0,0.1070257]
[1728517634263,0.06323408,60703.0,60701.0,0.04903443]
[1728517634485,0.04908264,60702.0,60701.0,0.04903443]
[1728517634689,0.07362399,60702.0,60701.0,0.164741]
[1728517635563,0.09816532,60702.0,60701.0,0.164741]
[1728517636002,0.27944041,60702.0,60701.0,0.164741]
[1728517636221,0.011,60702.0,60701.0,0.164741]
[1728517636466,0.02,60702.0,60701.0,0.165741]
[1728517637100,0.02,60702.0,60701.0,0.28648035]
[1728517637522,0.02,60702.0,60701.0,0.53871799]
[1728517637732,0.02,60702.0,60701.0,0.64401799]
[1728517638856,0.009,60702.0,60701.0,0.64401799]
[1728517639062,0.05076481,60705.0,60704.0,0.258433]
[1728517639288,0.05076481,60705.0,60704.0,0.61007233]
[1728517639548,0.005,60719.0,60704.0,0.61007233]
[1728517639549,0.04913081,60711.0,60707.0,0.2954]
[1728517639766,0.04913081,60711.0,60702.0,0.4339795]
[1728517639767,0.04913081,60714.0,60713.0,0.287709]
[1728517639996,0.04913081,60718.0,60716.0,0.2954]
[1728517640229,0.24621041,60720.0,60719.0,0.287693]
[1728517640450,0.04913081,60725.0,60724.0,0.164679]
[1728517640700,0.07533022,60727.0,60725.0,0.164676]
[1728517640701,0.05076481,60727.0,60725.0,0.164676]
[1728517641597,0.001634,60727.0,60725.0,0.164676]
[1728517642280,0.001634,60727.0,60723.0,0.329363]
[1728517642760,0.004634,60726.0,60725.0,0.164676]
[1728517642962,0.004634,60726.0,60725.0,0.25747865]
[1728517643186,0.001634,60726.0,60725.0,0.25747865]
[1728517643409,0.003634,60726.0,60725.0,0.25747865]
[1728517643640,0.004634,60726.0,60725.0,0.25747865]
[1728517643901,0.002634,60726.0,60725.0,0.25747865]
[1728517644136,0.004634,60726.0,60725.0,0.25747865]
[1728517644389,0.006634,60726.0,60725.0,0.25747865]
[1728517653872,0.006634,60726.0,60716.0,0.1724]
[1728517654124,0.329391,60719.0,60715.0,0.24621041]
[1728517654331,0.164701,60716.0,60715.0,0.24621041]
[1728517654770,0.164704,60715.0,60711.0,0.164714]
[1728517655172,0.164705,60715.0,60710.0,0.263815]
[1728517655584,0.164704,60715.0,60710.0,0.263815]
[1728517655781,0.164704,60715.0,60711.0,0.164714]
[1728517655980,0.164709,60714.0,60711.0,0.164714]
[1728517656208,0.329397,60717.0,60711.0,0.164714]
[1728517656409,0.001,60715.0,60712.0,0.164711]
[1728517656618,0.164703,60716.0,60712.0,0.164711]
[1728517657023,0.331408,60715.0,60711.0,0.005]
[1728517657221,0.164712,60712.0,60711.0,0.005]
[1728517657425,0.164712,60712.0,60703.0,0.50594441]
[1728517657426,0.16472,60710.0,60706.0,0.164726]
[1728517657634,0.164717,60710.0,60706.0,0.164726]
[1728517658093,0.494157,60710.0,60705.0,0.164729]
[1728517658303,0.164717,60711.0,60706.0,0.164727]
[1728517658751,0.164715,60711.0,60706.0,0.164726]
[1728517659173,0.009,60710.0,60705.0,0.000817]
[1728517659385,0.331419,60713.0,60705.0,0.000817]
[1728517659793,0.164716,60711.0,60706.0,0.164726]
[1728517659997,0.174716,60711.0,60706.0,0.164726]
[1728517660325,0.01,60711.0,60705.0,0.000817]
[1728517660530,0.164716,60711.0,60706.0,0.164725]
[1728517660922,0.002,60712.0,60705.0,0.000817]
[1728517661134,0.008,60711.0,60705.0,0.000817]
[1728517661344,0.172716,60711.0,60707.0,0.164725]
[1728517661559,0.172716,60711.0,60705.0,0.000817]
[1728517661560,0.008,60711.0,60705.0,0.000817]
[1728517661771,0.164712,60712.0,60707.0,0.164723]
[1728517661983,0.164712,60712.0,60708.0,0.164722]
[1728517662185,0.173712,60712.0,60708.0,0.164722]
[1728517662641,0.01,60711.0,60708.0,0.164722]
[1728517663050,0.164715,60711.0,60706.0,0.494177]
[1728517663263,0.02,60712.0,60705.0,0.000817]
[1728517663465,0.164719,60710.0,60705.0,0.000817]
[1728517663679,0.503139,60712.0,60707.0,0.164723]
[1728517663877,0.01,60711.0,60707.0,0.164723]
[1728517664321,0.174715,60711.0,60706.0,0.164726]
[1728517664523,0.174715,60711.0,60707.0,0.164725]
[1728517665044,0.164715,60711.0,60707.0,0.164725]
[1728517665251,0.172715,60711.0,60707.0,0.164725]
[1728517665547,0.164717,60710.0,60707.0,0.164725]
[1728517666082,0.018,60711.0,60708.0,0.164721]
[1728517666276,0.164717,60710.0,60706.0,0.164727]
[1728517666478,0.018,60711.0,60707.0,0.08362164]
[1728517666685,0.164721,60709.0,60705.0,0.000817]
[1728517667121,0.016,60710.0,60705.0,0.000817]
[1728517667338,0.016,60710.0,60707.0,0.329449]
[1728517667552,0.009,60710.0,60708.0,0.164721]
[1728517668411,0.164713,60712.0,60708.0,0.164761]
[1728517668616,0.01,60711.0,60708.0,0.164761]
[1728517668823,0.007,60710.0,60708.0,0.164761]
[1728517669249,0.007,60709.0,60708.0,0.164761]
[1728517669489,0.007,60710.0,60708.0,0.164761]
[1728517670136,0.164713,60712.0,60708.0,0.164761]
[1728517670368,0.173713,60712.0,60708.0,0.164761]
[1728517670812,0.164713,60712.0,60708.0,0.164761]
[1728517671015,0.007,60710.0,60708.0,4e-05]
[1728517671222,0.007,60710.0,60709.0,0.164719]
[1728517671429,0.007,60710.0,60708.0,4e-05]
[1728517671653,0.007,60709.0,60708.0,0.164762]
[1728517671860,0.001634,60711.0,60708.0,0.164762]
[1728517672285,0.009,60710.0,60708.0,0.164762]
[1728517672496,0.001634,60711.0,60708.0,0.164762]
[1728517672931,0.007,60709.0,60708.0,0.164762]
[1728517673186,0.001634,60711.0,60708.0,0.17345285]
[1728517673427,0.016,60710.0,60708.0,0.17345285]
[1728517673860,0.173719,60710.0,60708.0,4e-05]
[1728517674295,0.006,60709.0,60708.0,0.00104]
[1728517674524,0.006,60709.0,60708.0,0.165761]
[1728517674740,0.0506982,60711.0,60710.0,0.164717]
[1728517676027,0.0606982,60711.0,60710.0,0.164717]
[1728517677299,0.0686982,60711.0,60710.0,0.164717]
[1728517678584,0.019634,60711.0,60710.0,0.164717]
[1728517679836,0.019634,60711.0,60708.0,0.07544]
[1728517680037,0.04911142,60710.0,60708.0,4e-05]
[1728517680237,0.21383142,60709.0,60708.0,4e-05]
[1728517680452,0.16472,60709.0,60708.0,4e-05]
[1728517680704,0.166722,60708.0,60707.0,0.00048632]
[1728517680925,0.47069072,60708.0,60707.0,0.00048632]
[1728517681362,0.39721292,60708.0,60707.0,0.00048632]
[1728517682258,0.40721292,60708.0,60707.0,0.00048632]
[1728517682702,0.40221292,60708.0,60707.0,0.00148632]
[1728517682907,0.41517362,60708.0,60707.0,0.00148632]
[1728517683121,0.41017362,60708.0,60707.0,0.00048632]
[1728517683570,0.58198023,60708.0,60707.0,0.00048632]
[1728517683803,0.58398023,60708.0,60707.0,0.00048632]
[1728517684262,0.57098023,60708.0,60707.0,0.00048632]
[1728517684524,0.58398023,60708.0,60707.0,0.00048632]
[1728517685233,0.42117362,60708.0,60707.0,0.00048632]
[1728517687968,0.42317362,60708.0,60707.0,0.00048632]
[1728517688655,0.42309201,60708.0,60707.0,0.00048632]
[1728517689619,0.58392965,60708.0,60707.0,0.00048632]
[1728517690542,0.171728,60706.0,60705.0,0.000817]
[1728517690756,0.60301548,60706.0,60705.0,0.000817]
[1728517690970,0.56493565,60706.0,60705.0,0.000817]
[1728517691212,0.56293565,60706.0,60705.0,0.000817]
[1728517691442,0.71217491,60706.0,60705.0,0.000817]
[1728517691683,0.57893565,60706.0,60705.0,0.000817]
[1728517692389,0.72617491,60706.0,60705.0,0.000817]
[1728517692620,0.57893565,60706.0,60705.0,0.000817]
[1728517693067,0.56493565,60706.0,60705.0,0.000817]
[1728517693308,0.57893565,60706.0,60705.0,0.000817]
[1728517693786,0.59293565,60706.0,60705.0,0.000817]
[1728517695447,0.74017491,60706.0,60705.0,0.000817]
[1728517695682,0.164755,60696.0,60695.0,0.24621041]
[1728517696552,0.164756,60696.0,60693.0,0.000817]
[1728517696806,0.04910943,60695.0,60693.0,0.000817]
[1728517697509,0.04910943,60694.0,60693.0,0.000817]
[1728517698712,0.23841144,60695.0,60693.0,0.000817]
[1728517699432,0.16476,60694.0,60693.0,0.000817]
[1728517699671,0.23841144,60694.0,60693.0,0.000817]
[1728517699905,0.24041144,60694.0,60693.0,0.000817]
[1728517700624,0.24441144,60694.0,60693.0,0.000817]
[1728517701317,0.24447844,60694.0,60693.0,0.000817]
[1728517702281,0.24448155,60694.0,60693.0,0.000817]
[1728517702541,0.17076,60694.0,60693.0,0.000817]
[1728517703263,0.35219464,60694.0,60693.0,0.000817]
[1728517703491,0.17076,60694.0,60693.0,0.000817]
[1728517704702,0.006,60694.0,60693.0,0.3683706]
[1728517706806,0.006,60694.0,60693.0,0.55220824]
[1728517708619,0.006,60694.0,60693.0,0.65220824]
[1728517709669,0.006,60694.0,60693.0,0.66047662]
[1728517715504,0.004,60694.0,60693.0,0.65220824]
[1728517715727,0.007,60694.0,60693.0,0.65220824]
[1728517716862,0.003,60694.0,60693.0,0.65220824]
[1728517717109,0.008,60694.0,60693.0,0.65220824]
[1728517723239,0.008,60694.0,60693.0,2.63039724]
[1728517723460,0.12294519,60701.0,60698.0,0.1]
[1728517723461,0.04917807,60700.0,60698.0,0.1]
[1728517723713,0.04917807,60700.0,60699.0,0.35883764]
[1728517723904,0.07376711,60702.0,60700.0,0.1]
[1728517723905,0.04917807,60701.0,60700.0,0.1]
[1728517724176,0.07380972,60703.0,60702.0,0.0939]
[1728517724381,0.07380972,60704.0,60703.0,0.164736]
[1728517724596,0.07381151,60704.0,60703.0,0.164736]
[1728517725776,0.07545681,60705.0,60704.0,0.457933]
[1728517725997,0.07545681,60705.0,60704.0,0.83277018]
[1728517726446,0.07545681,60705.0,60704.0,0.64496124]
[1728517727098,0.08345681,60705.0,60704.0,0.64596124]
[1728517727776,0.009634,60705.0,60704.0,0.64596124]
[1728517727982,0.05883405,60705.0,60704.0,0.64596124]
[1728517728203,0.05883405,60705.0,60704.0,0.4621236]
[1728517728426,0.015634,60705.0,60704.0,0.3876236]
[1728517728643,0.06482653,60705.0,60704.0,0.3876236]
[1728517728873,0.06482651,60705.0,60704.0,0.3876236]
[1728517729721,0.06482651,60705.0,60704.0,0.39612971]
[1728517729936,0.06482651,60705.0,60704.0,0.57996735]
[1728517731721,0.015634,60705.0,60704.0,0.57996735]
[1728517733415,0.06482651,60705.0,60704.0,0.57996735]
[1728517733629,0.015634,60705.0,60704.0,0.57996735]
[1728517734311,0.015634,60705.0,60704.0,0.98248029]
[1728517734737,0.015634,60705.0,60704.0,0.98748029]
[1728517735158,0.009634,60705.0,60704.0,0.98648029]
[1728517735390,0.010634,60705.0,60704.0,0.98648029]
[1728517735846,0.002634,60705.0,60704.0,0.98548029]
[1728517736059,0.002634,60705.0,60704.0,0.99611429]
[1728517736270,0.003634,60705.0,60704.0,1.00211429]
[1728517736703,0.002634,60705.0,60704.0,1.00211429]
[1728517737156,0.003634,60705.0,60704.0,1.00611429]
[1728517738460,0.003634,60705.0,60704.0,0.94144197]
[1728517739529,0.002634,60705.0,60704.0,0.93544197]
[1728517739739,0.003634,60705.0,60704.0,0.94144197]
[1728517739950,0.002634,60705.0,60704.0,0.93744197]
[1728517740159,0.003634,60705.0,60704.0,1.44744197]
[1728517741507,0.003634,60705.0,60704.0,1.44944197]
[1728517742166,0.003634,60705.0,60704.0,1.44744197]
[1728517742605,0.003634,60705.0,60704.0,1.51193991]
[1728517744169,0.003634,60705.0,60704.0,1.37673591]
[1728517744388,0.003634,60705.0,60704.0,6.70902891]
[1728517745089,0.003634,60705.0,60704.0,6.71102891]
[1728517746270,0.003634,60705.0,60704.0,5.95107591]
[1728517746491,0.003634,60705.0,60704.0,5.85912291]
[1728517746719,0.003634,60705.0,60704.0,5.62709991]
[1728517747446,0.003634,60705.0,60704.0,5.43114191]
[1728517749499,0.001634,60708.0,60707.0,0.292725]
[1728517749713,0.001634,60708.0,60707.0,5.95365564]
[1728517749984,0.001634,60708.0,60707.0,3.87318164]
[1728517750182,0.001634,60708.0,60707.0,3.68690464]
[1728517750398,0.001634,60708.0,60707.0,3.47295164]
[1728517750612,0.001634,60708.0,60707.0,3.49416147]
[1728517750860,0.002634,60708.0,60707.0,3.50416147]
[1728517751068,0.003634,60708.0,60707.0,3.51416147]
[1728517751503,0.003634,60708.0,60707.0,3.49156147]
[1728517754119,0.003634,60708.0,60707.0,0.84034447]
[1728517754347,0.003634,60708.0,60707.0,0.80123947]
[1728517754595,0.003634,60708.0,60707.0,0.80623947]
[1728517755759,0.003634,60708.0,60707.0,0.82923947]
[1728517760405,0.164678,60725.0,60707.0,0.82923947]
[1728517760406,0.24621041,60725.0,60724.0,0.264679]
[1728517760568,0.24621041,60725.0,60724.0,1.04969624]
[1728517760774,0.001634,60726.0,60725.0,0.287676]
[1728517760941,0.001634,60726.0,60725.0,0.86819264]
[1728517763396,0.001634,60726.0,60725.0,0.461032]
[1728517763630,0.001634,60726.0,60725.0,1.23900361]
[1728517764124,0.001634,60726.0,60725.0,1.26365905]
[1728517764369,0.001634,60726.0,60725.0,1.23900361]
[1728517764621,0.001634,60726.0,60725.0,1.43735905]
[1728517765751,0.001634,60726.0,60725.0,1.43535905]
[1728517765971,0.001634,60726.0,60725.0,1.44535905]
[1728517766221,0.001634,60726.0,60725.0,1.44335905]
[1728517766459,0.001634,60726.0,60725.0,1.43335905]
[1728517766681,0.001634,60726.0,60725.0,1.45335905]
[1728517767141,0.001634,60726.0,60725.0,1.44335905]
[1728517767365,0.001634,60726.0,60725.0,1.45335905]
[1728517768039,0.001634,60726.0,60725.0,0.89312505]
[1728517768487,0.001634,60726.0,60725.0,0.86846961]
[1728517772494,0.001634,60726.0,60725.0,0.87505861]
[1728517779421,0.001634,60726.0,60725.0,0.63783861]
[1728517783945,0.001634,60726.0,60725.0,0.82317461]
[1728517785311,0.077334,60726.0,60725.0,0.31385436]
[1728517785561,0.077334,60726.0,60725.0,0.19319436]
[1728517785790,0.077334,60726.0,60725.0,0.60024241]
[1728517785982,0.001634,60726.0,60725.0,0.354032]
[1728517786236,0.001634,60726.0,60725.0,0.50483861]
[1728517786454,0.001634,60726.0,60725.0,0.49483861]
[1728517786669,0.001634,60726.0,60725.0,0.49883861]
[1728517786892,0.001634,60726.0,60725.0,0.50283861]
[1728517787117,0.001634,60726.0,60725.0,0.49883861]
[1728517787336,0.001634,60726.0,60725.0,0.50183861]
[1728517788277,0.001634,60726.0,60725.0,0.49783861]
[1728517788494,0.001634,60726.0,60725.0,0.50083861]
[1728517788724,0.001634,60726.0,60725.0,0.49783861]
[1728517788940,0.001634,60726.0,60725.0,0.51783861]
[1728517789387,0.001634,60726.0,60725.0,0.51983861]
[1728517789825,0.001634,60726.0,60725.0,0.52183861]
[1728517792963,0.001634,60726.0,60725.0,1.02183861]
[1728517807394,0.001634,60726.0,60725.0,0.83800097]
[1728517808095,0.07541169,60726.0,60725.0,0.83800097]
[1728517808587,0.07541169,60726.0,60725.0,0.99883861]
[1728517809502,0.05081677,60726.0,60725.0,0.99883861]
[1728517809766,0.05081677,60726.0,60725.0,1.02183861]
[1728517809984,0.001634,60726.0,60725.0,1.18648061]
[1728517810947,0.001634,60726.0,60725.0,1.17173261]
[1728517812064,0.001634,60726.0,60725.0,1.02183861]
[1728517812318,0.001634,60726.0,60725.0,1.17173261]
[1728517812767,0.001634,60726.0,60725.0,1.02183861]
[1728517814360,0.05081677,60726.0,60725.0,1.02183861]
[1728517814823,0.05084496,60726.0,60725.0,1.02183861]
[1728517821300,0.001634,60726.0,60725.0,1.02183861]
[1728517821520,0.001634,60726.0,60725.0,1.03728825]
[1728517823383,0.07547749,60726.0,60725.0,1.03728825]
[1728517827515,0.07547749,60726.0,60725.0,1.03728829]
[1728517830490,0.001634,60726.0,60725.0,1.03728829]
[1728517830952,0.001634,60726.0,60725.0,1.02183861]
[1728517831191,0.001634,60726.0,60725.0,1.03728836]
[1728517831443,0.28199115,60726.0,60725.0,1.03728836]
[1728517831906,0.28208517,60726.0,60725.0,1.03728836]
[1728517834381,0.28208517,60726.0,60725.0,1.01428836]
[1728517834630,0.3067233,60726.0,60725.0,0.99883861]
[1728517834857,0.19764573,60726.0,60725.0,0.99883861]
[1728517835080,0.19764573,60726.0,60725.0,1.01428872]
[1728517835306,0.19764573,60726.0,60725.0,0.99883861]
[1728517835752,0.19764573,60726.0,60725.0,1.01428905]
[1728517836642,0.1835107,60726.0,60725.0,1.01428905]
[1728517836850,0.19762376,60726.0,60725.0,1.01428905]
[1728517837072,0.1835107,60726.0,60725.0,1.01428905]
[1728517838025,0.1835107,60726.0,60725.0,0.49883861]
[1728517838281,0.1835107,60726.0,60725.0,0.51428588]
[1728517838510,0.19762376,60726.0,60725.0,0.52973315]
[1728517838749,0.19762376,60726.0,60725.0,0.51428588]
[1728517840364,0.32077916,60726.0,60725.0,0.51428588]
[1728517841548,0.32077916,60726.0,60725.0,0.51428428]
[1728517842002,0.32074061,60726.0,60725.0,0.51428428]
[1728517842643,0.19758864,60726.0,60725.0,0.02796362]
[1728517842932,0.21842581,60726.0,60725.0,0.168676]
[1728517843160,0.16711982,60726.0,60725.0,0.33849509]
[1728517843593,0.16711982,60726.0,60725.0,0.21535828]
[1728517843594,0.13722511,60726.0,60725.0,0.21535828]
[1728517843803,0.13722726,60726.0,60725.0,0.22880216]
[1728517844017,0.14122726,60726.0,60725.0,0.22880216]
[1728517844241,0.01809383,60726.0,60725.0,0.06212616]
[1728517844453,0.01809383,60726.0,60725.0,0.02385488]
[1728517844666,0.02209383,60726.0,60725.0,0.02385488]
[1728517845085,0.01809383,60726.0,60725.0,0.02385488]
[1728517845299,0.01809383,60726.0,60725.0,0.02585488]
[1728517845990,0.09329383,60726.0,60725.0,0.002]
[1728517846205,0.25796783,60726.0,60725.0,0.004]
[1728517846641,0.45700079,60726.0,60725.0,0.004]
[1728517847080,0.40714429,60726.0,60725.0,0.004]
[1728517847310,0.40714429,60726.0,60725.0,0.002]
[1728517847769,0.164679,60724.0,60717.0,0.164697]
[1728517848016,0.242397,60718.0,60715.0,0.24621041]
[1728517848260,0.28783781,60716.0,60715.0,0.24621041]
[1728517848503,0.29942591,60716.0,60715.0,0.24621041]
[1728517848733,0.164708,60714.0,60711.0,0.000817]
[1728517848960,0.083,60715.0,60714.0,0.24621041]
[1728517849191,0.083,60715.0,60711.0,0.165531]
[1728517849427,0.12286314,60713.0,60711.0,0.000817]
[1728517849663,0.24599995,60713.0,60711.0,0.000817]
[1728517849899,0.1763001,60712.0,60711.0,0.000817]
[1728517850120,0.1763001,60712.0,60711.0,0.005817]
[1728517850356,0.2659001,60712.0,60711.0,0.005817]
[1728517850613,0.2659001,60712.0,60707.0,0.0001]
[1728517850614,0.166722,60708.0,60707.0,0.0001]
[1728517850843,0.28985881,60708.0,60707.0,0.0001]
[1728517851324,0.30144691,60708.0,60707.0,0.0001]
[1728517852269,0.42413801,60708.0,60707.0,0.0001]
[1728517852506,0.0135881,60708.0,60707.0,0.0001]
[1728517852971,0.0135881,60708.0,60707.0,0.0496127]
[1728517853471,0.13617248,60708.0,60707.0,0.0496127]
[1728517853690,0.11165698,60708.0,60707.0,0.0496127]
[1728517854359,0.0135881,60708.0,60707.0,0.164825]
[1728517854595,0.0135881,60708.0,60707.0,0.0001]
[1728517855258,0.08711078,60708.0,60707.0,0.24631041]
[1728517855492,0.08711078,60708.0,60707.0,0.164825]
[1728517855728,0.0135881,60708.0,60707.0,0.164825]
[1728517855942,0.0135881,60708.0,60707.0,0.2553225]
[1728517856399,0.06257964,60708.0,60707.0,0.2553225]
[1728517857334,0.0135881,60708.0,60707.0,0.2553225]
[1728517857780,0.0135881,60708.0,60707.0,0.26369909]
[1728517860010,0.0135881,60708.0,60707.0,0.2553225]
[1728517861895,0.002,60708.0,60707.0,0.2553225]
[1728517862339,0.002,60708.0,60707.0,0.2561395]
[1728517870954,0.002,60708.0,60707.0,0.0914145]
[1728517871236,0.002,60708.0,60707.0,0.000917]
[1728517871462,0.01326736,60708.0,60707.0,0.000917]
[1728517871679,0.002,60708.0,60707.0,0.000917]
[1728517871893,0.01326082,60708.0,60707.0,0.000917]
[1728517873888,0.17798482,60708.0,60705.0,0.000817]
[1728517874104,0.12313681,60706.0,60705.0,0.000817]
[1728517874326,0.28786481,60706.0,60705.0,0.000817]
[1728517874984,0.29912563,60706.0,60705.0,0.000817]
[1728517875415,0.29912563,60706.0,60705.0,0.005817]
[1728517876296,0.62902791,60706.0,60705.0,0.005817]
[1728517876528,1.08839285,60706.0,60705.0,0.005817]
[1728517876755,1.08839285,60706.0,60694.0,0.000817]
[1728517876756,0.28789481,60695.0,60694.0,0.24702741]
[1728517876973,0.49206683,60695.0,60694.0,0.24702741]
[1728517877189,0.42978418,60695.0,60694.0,0.24702741]
[1728517877412,0.45412112,60695.0,60694.0,0.000817]
[1728517877671,0.43176867,60695.0,60694.0,0.000817]
[1728517878333,0.77833523,60695.0,60694.0,0.000817]
[1728517878573,0.94111713,60695.0,60694.0,0.000817]
[1728517878789,0.94611713,60695.0,60694.0,0.000817]
[1728517879005,0.8481637,60695.0,60694.0,0.000817]
[1728517879220,0.8431637,60695.0,60694.0,0.000817]
[1728517879434,0.97053711,60695.0,60694.0,0.000817]
[1728517879654,1.13134372,60695.0,60694.0,0.000817]
[1728517879918,1.10686668,60695.0,60694.0,0.000817]
[1728517881064,0.94606007,60695.0,60694.0,0.000817]
[1728517881475,0.94406007,60695.0,60694.0,0.000817]
[1728517881753,0.59025715,60695.0,60694.0,0.000817]
[1728517881974,0.49236078,60695.0,60694.0,0.000817]
[1728517882376,0.49229526,60695.0,60694.0,0.000817]
[1728517883020,0.41269526,60695.0,60694.0,0.000817]
[1728517883511,0.14068624,60695.0,60694.0,0.000817]
[1728517883754,0.30544424,60695.0,60694.0,0.000817]
[1728517885346,0.2543528,60695.0,60694.0,0.000817]
[1728517885561,0.01618242,60695.0,60694.0,0.000817]
[1728517885779,0.01618242,60695.0,60694.0,0.034016]
[1728517885996,0.01118242,60695.0,60694.0,0.034016]
[1728517886231,0.01501521,60695.0,60694.0,0.034016]
[1728517887363,0.17977321,60695.0,60694.0,0.000817]
[1728517887603,0.01501521,60695.0,60694.0,0.000817]
[1728517888598,0.2287319,60695.0,60694.0,0.000817]
[1728517889537,0.22878768,60695.0,60694.0,0.000817]
[1728517890645,0.17977321,60695.0,60694.0,0.000817]
[1728517891268,0.25318559,60695.0,60694.0,0.000817]
[1728517891881,0.25334195,60695.0,60694.0,0.000817]
[1728517892455,0.17977321,60695.0,60694.0,0.000817]
[1728517892676,0.3609165,60695.0,60694.0,0.000817]
[1728517893187,0.16476,60694.0,60693.0,0.00053733]
[1728517893423,0.46851787,60694.0,60693.0,0.00053733]
[1728517893678,0.35596644,60694.0,60693.0,0.00053733]
[1728517893916,0.4786908,60694.0,60693.0,0.00053733]
[1728517894427,0.35596644,60694.0,60693.0,0.00053733]
[1728517894637,0.35696644,60694.0,60693.0,0.00053733]
[1728517895082,0.35896644,60694.0,60693.0,0.00053733]
[1728517896357,0.4816905,60694.0,60693.0,0.00053733]
[1728517897716,0.35896644,60694.0,60693.0,0.00053733]
[1728517897884,0.48168765,60694.0,60693.0,0.00053733]
[1728517900535,0.35896644,60694.0,60693.0,0.00053733]
[1728517902609,0.54693172,60694.0,60693.0,0.00053733]
[1728517902840,0.166769,60691.0,60690.0,0.000818]
[1728517903063,0.55990515,60691.0,60690.0,0.000818]
[1728517903290,0.65173576,60691.0,60690.0,0.000818]
[1728517903579,0.65673576,60691.0,60690.0,0.000818]
[1728517903828,1.07777205,60691.0,60690.0,0.000818]
[1728517904080,1.33737836,60691.0,60690.0,0.001818]
[1728517904337,1.33737147,60691.0,60690.0,0.001818]
[1728517904611,1.34437147,60691.0,60690.0,0.002818]
[1728517904858,1.34437147,60691.0,60690.0,0.001818]
[1728517904859,1.33737587,60691.0,60690.0,0.001818]
[1728517905108,1.34737587,60691.0,60690.0,0.002818]
[1728517905365,1.34137587,60691.0,60690.0,0.001818]
[1728517905610,1.35537587,60691.0,60690.0,0.002818]
[1728517906120,1.18984868,60691.0,60690.0,0.002818]
[1728517907340,1.1894494,60691.0,60690.0,0.002818]
[1728517907553,0.93607838,60691.0,60690.0,0.002818]
[1728517907769,1.1894494,60691.0,60690.0,0.002818]
[1728517908205,1.1894494,60691.0,60672.0,0.24621041]
[1728517908206,0.171782,60686.0,60685.0,0.24621041]
[1728517908461,0.38177486,60686.0,60685.0,0.24621041]
[1728517908678,0.329608,60679.0,60672.0,0.24621041]
[1728517908890,0.164814,60675.0,60672.0,0.24621041]
[1728517909353,0.00995869,60674.0,60672.0,0.24621041]
[1728517909580,0.00995869,60674.0,60671.0,0.164823]
[1728517909855,0.00995869,60674.0,60670.0,0.164824]
[1728517910082,0.00995869,60674.0,60671.0,0.0915468]